fUST/lending_fUST_20240111
["ID","MTS","AMOUNT","RATE_DAILY","PERIOD"]
[311105354,1704906652609,-500.0,0.00029315,2]
[311105355,1704906652617,-648.47,0.00029315,2]
[311105356,1704906652626,-500.0,0.00029315,2]
[311105357,1704906652635,-500.0,0.00029315,2]
[311105358,1704906652645,-705.37,0.00029315,2]
[311105359,1704906652656,-500.0,0.00029315,2]
[311105360,1704906652664,-4152.8,0.00029315,2]
[311105361,1704906652673,-500.0,0.00029315,2]
[311105362,1704906652682,-500.0,0.00029315,2]
[311105363,1704906652691,-9667.13,0.00029315,2]
[311105364,1704906652700,-570.4,0.00029315,2]
[311105365,1704906652709,-500.0,0.00029315,2]
[311105366,1704906652719,-600.74,0.00029315,2]
[311105367,1704906652728,-1219.97,0.00029315,2]
[311105368,1704906652737,-1138.5,0.00029315,2]
[311105369,1704906652746,-638.09,0.00029315,2]
[311105370,1704906652755,-1430.3,0.00029315,2]
[311105371,1704906652764,-1315.67,0.00029315,2]
[311105372,1704906652773,-151.0,0.00029457,2]
[311105373,1704906652783,-500.0,0.00029588,2]
[311105374,1704906652792,-533.41,0.00029589,2]
[311105375,1704906652801,-500.0,0.00029589,2]
[311105376,1704906652809,-500.0,0.00029589,2]
[311105377,1704906652818,-500.0,0.00029589,2]
[311105378,1704906652827,-750.47,0.00029589,2]
[311105379,1704906652837,-500.0,0.00029589,2]
[311105380,1704906652846,-500.0,0.00029589,2]
[311105381,1704906652855,-500.0,0.00029589,2]
[311105382,1704906652864,-343.2,0.00029589,2]
[311105383,1704906652874,-927.26,0.00029589,2]
[311105384,1704906652883,-500.0,0.00029589,2]
[311105385,1704906652892,-500.0,0.00029589,2]
[311105386,1704906652902,-1601.93,0.00029589,2]
[311105387,1704906652912,-346.92,0.00029589,2]
[311105388,1704906652921,-421.14,0.00029589,2]
[311105389,1704906652931,-500.0,0.00029589,2]
[311105390,1704906652940,-500.0,0.00029589,2]
[311105391,1704906652949,-500.0,0.00029589,2]
[311105392,1704906652958,-500.0,0.00029589,2]
[311105393,1704906652966,-500.0,0.00029589,2]
[311105394,1704906652976,-389.96,0.00029589,2]
[311105395,1704906652985,-648.47,0.00029589,2]
[311105396,1704906652993,-581.94597339,0.00029589,2]
[311105397,1704906653002,-500.0,0.00029589,2]
[311105398,1704906653014,-705.37,0.00029589,2]
[311105399,1704906653023,-500.0,0.00029589,2]
[311105400,1704906653032,-4152.8,0.00029589,2]
[311105401,1704906653041,-500.0,0.00029589,2]
[311105402,1704906653050,-500.0,0.00029589,2]
[311105403,1704906653060,-9667.13,0.00029589,2]
[311105404,1704906653070,-500.0,0.00029589,2]
[311105405,1704906653079,-600.74,0.00029589,2]
[311105406,1704906653089,-1219.97,0.00029589,2]
[311105407,1704906653098,-1138.5,0.00029589,2]
[311105408,1704906653108,-638.09,0.00029589,2]
[311105409,1704906653117,-1430.3,0.00029589,2]
[311105410,1704906653126,-1315.67,0.00029589,2]
[311105411,1704906653136,-373.66045,0.000296,14]
[311105412,1704906653145,-229434.7142307,0.0002979,7]
[311105413,1704906653155,-151.0,0.0002979,2]
[311105414,1704906653166,-151.0,0.0002979,2]
[311105415,1704906653175,-390.44912,0.0002979,2]
[311105416,1704906653184,-390.44912,0.0002979,2]
[311105417,1704906653194,-508.852716,0.0002979,2]
[311105418,1704906653203,-508.852716,0.0002979,2]
[311105419,1704906653212,-153.0,0.00029836,2]
[311105420,1704906653221,-306.0,0.00029836,2]
[311105421,1704906653230,-533.41,0.00029863,2]
[311105422,1704906653240,-500.0,0.00029863,2]
[311105423,1704906653249,-500.0,0.00029863,2]
[311105424,1704906653258,-278.07,0.00029863,2]
[311105425,1704906653267,-750.47,0.00029863,2]
[311105426,1704906653276,-500.0,0.00029863,2]
[311105427,1704906653286,-500.0,0.00029863,2]
[311105428,1704906653295,-500.0,0.00029863,2]
[311105429,1704906653304,-927.26,0.00029863,2]
[311105430,1704906653313,-500.0,0.00029863,2]
[311105431,1704906653322,-500.0,0.00029863,2]
[311105432,1704906653332,-1601.93,0.00029863,2]
[311105433,1704906653340,-500.0,0.00029863,2]
[311105434,1704906653350,-500.0,0.00029863,2]
[311105435,1704906653359,-500.0,0.00029863,2]
[311105436,1704906653368,-500.0,0.00029863,2]
[311105437,1704906653377,-500.0,0.00029863,2]
[311105438,1704906653386,-648.47,0.00029863,2]
[311105439,1704906653395,-500.0,0.00029863,2]
[311105440,1704906653405,-705.37,0.00029863,2]
[311105441,1704906653414,-500.0,0.00029863,2]
[311105442,1704906653423,-4152.8,0.00029863,2]
[311105443,1704906653432,-594.5,0.00029863,2]
[311105444,1704906653441,-500.0,0.00029863,2]
[311105445,1704906653450,-9667.13,0.00029863,2]
[311105446,1704906653459,-500.0,0.00029863,2]
[311105447,1704906653469,-600.74,0.00029863,2]
[311105448,1704906653478,-1219.97,0.00029863,2]
[311105449,1704906653487,-1138.5,0.00029863,2]
[311105450,1704906653496,-638.09,0.00029863,2]
[311105451,1704906653505,-1430.3,0.00029863,2]
[311105452,1704906653514,-1315.67,0.00029863,2]
[311105453,1704906653523,-500.0,0.00029999,2]
[311105454,1704906653532,-289.9994027,0.0003,4]
[311105455,1704906653541,-463.38099934,0.0003,4]
[311105456,1704906653550,-686.6335406,0.0003,4]
[311105457,1704906653558,-154.87609912,0.0003,2]
[311105458,1704906653568,-399.65900583,0.0003,4]
[311105459,1704906653577,-236.52252731,0.0003,7]
[311105460,1704906653586,-18048.02930508,0.0003,4]
[311105461,1704906653595,-243.77594457,0.0003,4]
[311105462,1704906653604,-639.65046808,0.0003,4]
[311105463,1704906653613,-6973.85683356,0.0003,4]
[311105464,1704906653623,-2795.0,0.0003,2]
[311105465,1704906653632,-5000.0,0.0003,2]
[311105466,1704906653641,-5000.0,0.0003,2]
[311105467,1704906653652,-5000.0,0.0003,2]
[311105468,1704906653661,-1101.32,0.0003,2]
[311105469,1704906653670,-2754.83813333,0.0003,2]
[311105470,1704906653679,-2188.52939093,0.0003,2]
[311105471,1704906653688,-22199.31688565,0.0003,3]
[311105472,1704906653697,-35003.82501296,0.0003,10]
[311105473,1704906653705,-1475.70472705,0.0003,2]
[311105474,1704906653715,-18548.99519009,0.0003,2]
[311105475,1704906653723,-698.81535711,0.0003,2]
[311105476,1704906653732,-2000.0,0.0003,2]
[311105477,1704906653742,-243.0,0.0003,2]
[311105478,1704906653750,-2000.0,0.0003001,2]
[311105479,1704906653759,-2000.0,0.0003002,2]
[311105480,1704906653768,-2000.0,0.0003003,2]
[311105481,1704906653778,-2000.0,0.0003004,2]
[311105482,1704906653786,-2000.0,0.0003005,2]
[311105483,1704906653795,-2000.0,0.0003006,2]
[311105484,1704906653804,-2000.0,0.0003007,2]
[311105485,1704906653813,-2000.0,0.0003008,2]
[311105486,1704906653822,-2000.0,0.0003009,2]
[311105487,1704906653830,-2000.0,0.000301,2]
[311105488,1704906653839,-2000.0,0.0003011,2]
[311105489,1704906653925,-2000.0,0.0003012,2]
[311105490,1704906653935,-197.35265213,0.0003013,2]
[311105491,1704906653944,-2000.0,0.0003013,2]
[311105492,1704906653953,-500.0,0.00030135,2]
[311105493,1704906653962,-533.41,0.00030136,2]
[311105494,1704906653971,-500.0,0.00030136,2]
[311105495,1704906653980,-500.0,0.00030136,2]
[311105496,1704906653989,-750.47,0.00030136,2]
[311105497,1704906653998,-500.0,0.00030136,2]
[311105498,1704906654006,-500.0,0.00030136,2]
[311105499,1704906654015,-500.0,0.00030136,2]
[311105500,1704906654024,-927.26,0.00030136,2]
[311105501,1704906654035,-500.0,0.00030136,2]
[311105502,1704906654044,-500.0,0.00030136,2]
[311105503,1704906654053,-1601.93,0.00030136,2]
[311105504,1704906654063,-150.0,0.00030136,2]
[311105505,1704906654072,-500.0,0.00030136,2]
[311105506,1704906654081,-505.08,0.00030136,2]
[311105507,1704906654090,-500.0,0.00030136,2]
[311105508,1704906654099,-500.0,0.00030136,2]
[311105509,1704906654110,-500.0,0.00030136,2]
[311105510,1704906654119,-648.47,0.00030136,2]
[311105511,1704906654128,-500.0,0.00030136,2]
[311105512,1704906654137,-705.37,0.00030136,2]
[311105513,1704906654146,-500.0,0.00030136,2]
[311105514,1704906654155,-4152.8,0.00030136,2]
[311105515,1704906654164,-616.76,0.00030136,2]
[311105516,1704906654174,-9667.13,0.00030136,2]
[311105517,1704906654183,-500.0,0.00030136,2]
[311105518,1704906654192,-600.74,0.00030136,2]
[311105519,1704906654203,-1219.97,0.00030136,2]
[311105520,1704906654212,-1138.5,0.00030136,2]
[311105521,1704906654222,-638.09,0.00030136,2]
[311105522,1704906654231,-1430.3,0.00030136,2]
[311105523,1704906654241,-1315.67,0.00030136,2]
[311105524,1704906654250,-5000.0,0.00030137,2]
[311105525,1704906654259,-3180.8731799,0.00030137,2]
[311105526,1704906654270,-155.0,0.00030137,2]
[311105527,1704906654279,-3929.751714,0.0003014,2]
[311105528,1704906654288,-390.44912,0.00030148,2]
[311105529,1704906654297,-390.44912,0.00030148,2]
[311105530,1704906654307,-508.852716,0.00030148,2]
[311105531,1704906654316,-508.852716,0.00030148,2]
[311105532,1704906654325,-153.0,0.00030167,2]
[311105533,1704906654334,-153.0,0.00030167,2]
[311105534,1704906654344,-153.0,0.00030167,2]
[311105535,1704906654353,-153.0,0.00030167,2]
[311105536,1704906654362,-465.70884846,0.00030409,2]
[311105537,1704906654371,-533.41,0.0003041,2]
[311105538,1704906654381,-500.0,0.0003041,2]
[311105539,1704906654389,-500.0,0.0003041,2]
[311105540,1704906654399,-750.47,0.0003041,2]
[311105541,1704906654408,-489.95,0.0003041,2]
[311105542,1704906654417,-500.0,0.0003041,2]
[311105543,1704906654426,-519.83006486,0.0003041,2]
[311105544,1704906654435,-927.26,0.0003041,2]
[311105545,1704906654443,-500.0,0.0003041,2]
[311105546,1704906654452,-500.0,0.0003041,2]
[311105547,1704906654461,-1601.93,0.0003041,2]
[311105548,1704906654470,-232.11960502,0.0003041,2]
[311105549,1704906654479,-500.0,0.0003041,2]
[311105550,1704906654488,-500.0,0.0003041,2]
[311105551,1704906654497,-220.12160124,0.0003041,2]
[311105552,1704906654506,-648.47,0.0003041,2]
[311105553,1704906654515,-500.0,0.0003041,2]
[311105554,1704906654524,-705.37,0.0003041,2]
[311105555,1704906654533,-500.0,0.0003041,2]
[311105556,1704906654543,-4152.8,0.0003041,2]
[311105557,1704906654551,-9667.13,0.0003041,2]
[311105558,1704906654560,-500.0,0.0003041,2]
[311105559,1704906654570,-600.74,0.0003041,2]
[311105560,1704906654579,-1219.97,0.0003041,2]
[311105561,1704906654588,-1138.5,0.0003041,2]
[311105562,1704906654597,-638.09,0.0003041,2]
[311105563,1704906654606,-1430.3,0.0003041,2]
[311105564,1704906654615,-151.0,0.0003041,2]
[311105565,1704906654624,-151.0,0.0003041,2]
[311105566,1704906654633,-620.00004405,0.00030561,2]
[311105567,1704906654641,-200.0,0.00030626,15]
[311105568,1704906654652,-533.41,0.00030684,2]
[311105569,1704906654660,-500.0,0.00030684,2]
[311105570,1704906654669,-500.0,0.00030684,2]
[311105571,1704906654678,-750.47,0.00030684,2]
[311105572,1704906654687,-500.0,0.00030684,2]
[311105573,1704906654696,-927.26,0.00030684,2]
[311105574,1704906654705,-500.0,0.00030684,2]
[311105575,1704906654714,-629.76,0.00030684,2]
[311105576,1704906654722,-1601.93,0.00030684,2]
[311105577,1704906654731,-500.0,0.00030684,2]
[311105578,1704906654739,-500.0,0.00030684,2]
[311105579,1704906654748,-648.47,0.00030684,2]
[311105580,1704906654757,-500.0,0.00030684,2]
[311105581,1704906654766,-705.37,0.00030684,2]
[311105582,1704906654775,-500.0,0.00030684,2]
[311105583,1704906654784,-4152.8,0.00030684,2]
[311105584,1704906654793,-9667.13,0.00030684,2]
[311105585,1704906654802,-500.0,0.00030684,2]
[311105586,1704906654811,-600.74,0.00030684,2]
[311105587,1704906654821,-1219.97,0.00030684,2]
[311105588,1704906654830,-1138.5,0.00030684,2]
[311105589,1704906654839,-638.09,0.00030684,2]
[311105590,1704906654848,-1430.3,0.00030684,2]
[311105591,1704906654857,-151.0,0.00030697,2]
[311105592,1704906654866,-320.0046877,0.00030859,2]
[311105593,1704906654875,-153.0,0.00030859,2]
[311105594,1704906654884,-153.0,0.00030859,2]
[311105595,1704906654893,-153.0,0.00030859,2]
[311105596,1704906654903,-153.0,0.00030859,2]
[311105597,1704906654912,-523.40737898,0.00030887,2]
[311105598,1704906654922,-731.19935256,0.00030887,2]
[311105599,1704906654931,-479.23435607,0.00030887,2]
[311105600,1704906654940,-1003.37400305,0.00030887,2]
[311105601,1704906654950,-1000.0,0.00030887,7]
[311105602,1704906654960,-426.43479137,0.00030887,2]
[311105603,1704906654968,-1000.0,0.00030887,7]
[311105604,1704906654977,-185.492275,0.00030887,2]
[311105605,1704906654986,-4644.59718967,0.00030887,2]
[311105606,1704906654996,-1000.0,0.00030887,7]
[311105607,1704906655005,-1000.0,0.00030887,7]
[311105608,1704906655014,-1000.0,0.00030887,7]
[311105609,1704906655023,-5000.0,0.00030936,2]
[311105610,1704906655032,-5000.01,0.00030937,2]
[311105611,1704906655041,-2191.24,0.00030944,2]
[311105612,1704906655050,-5000.0,0.00030945,2]
[311105613,1704906655060,-5000.0,0.00030948,2]
[311105614,1704906655069,-4288.23,0.00030951,2]
[311105615,1704906655078,-1135.23,0.00030951,2]
[311105616,1704906655088,-5000.0,0.00030954,2]
[311105617,1704906655097,-533.41,0.00030958,2]
[311105618,1704906655106,-500.0,0.00030958,2]
[311105619,1704906655116,-227.17,0.00030958,2]
[311105620,1704906655125,-750.47,0.00030958,2]
[311105621,1704906655135,-193.7,0.00030958,2]
[311105622,1704906655145,-927.26,0.00030958,2]
[311105623,1704906655158,-500.0,0.00030958,2]
[311105624,1704906655167,-1601.93,0.00030958,2]
[311105625,1704906655175,-500.0,0.00030958,2]
[311105626,1704906655184,-500.0,0.00030958,2]
[311105627,1704906655193,-648.47,0.00030958,2]
[311105628,1704906655202,-500.0,0.00030958,2]
[311105629,1704906655212,-705.37,0.00030958,2]
[311105630,1704906655221,-500.0,0.00030958,2]
[311105631,1704906655230,-4152.8,0.00030958,2]
[311105632,1704906655240,-9667.13,0.00030958,2]
[311105633,1704906655249,-423.41752008,0.00030958,2]
[311105634,1704906655259,-600.74,0.00030958,2]
[311105635,1704906655269,-1219.97,0.00030958,2]
[311105636,1704906655278,-1138.5,0.00030958,2]
[311105637,1704906655287,-1430.3,0.00030958,2]
[311105638,1704906655296,-638.09,0.00030958,2]
[311105639,1704906655305,-5000.0,0.00030965,2]
[311105640,1704906655315,-5000.0,0.00030968,2]
[311105641,1704906655324,-5000.0,0.0003097,2]
[311105642,1704906655333,-1635.37,0.00030972,2]
[311105643,1704906655342,-5000.0,0.0003098,2]
[311105644,1704906655352,-5000.0,0.00030982,2]
[311105645,1704906655361,-708.69,0.00030987,2]
[311105646,1704906655370,-708.69,0.00030987,2]
[311105647,1704906655379,-708.69,0.00030987,2]
[311105648,1704906655388,-708.69,0.00030987,2]
[311105649,1704906655397,-708.69,0.00030987,2]
[311105650,1704906655407,-708.69,0.00030987,2]
[311105651,1704906655416,-708.69,0.00030987,2]
[311105652,1704906655425,-708.69,0.00030987,2]
[311105653,1704906655435,-20585.91157609,0.00031,4]
[311105654,1704906655444,-533.41,0.00031232,2]
[311105655,1704906655453,-500.0,0.00031232,2]
[311105656,1704906655462,-750.47,0.00031232,2]
[311105657,1704906655471,-927.26,0.00031232,2]
[311105658,1704906655481,-500.0,0.00031232,2]
[311105659,1704906655490,-1601.93,0.00031232,2]
[311105660,1704906655499,-500.0,0.00031232,2]
[311105661,1704906655508,-500.0,0.00031232,2]
[311105662,1704906655517,-648.47,0.00031232,2]
[311105663,1704906655526,-500.0,0.00031232,2]
[311105664,1704906655535,-705.37,0.00031232,2]
[311105665,1704906655544,-500.0,0.00031232,2]
[311105666,1704906655625,-4152.8,0.00031232,2]
[311105667,1704906655636,-9667.13,0.00031232,2]
[311105668,1704906655647,-600.74,0.00031232,2]
[311105669,1704906655658,-1219.97,0.00031232,2]
[311105670,1704906655669,-1138.5,0.00031232,2]
[311105671,1704906655679,-1430.3,0.00031232,2]
[311105672,1704906655688,-638.09,0.00031232,2]
[311105673,1704906655697,-161.0,0.00031283,2]
[311105674,1704906655707,-201.787,0.00031283,2]
[311105675,1704906655716,-272.0,0.00031283,2]
[311105676,1704906655725,-153.0,0.00031292,2]
[311105677,1704906655735,-153.0,0.00031292,2]
[311105678,1704906655744,-153.0,0.00031292,2]
[311105679,1704906655753,-533.41,0.00031506,2]
[311105680,1704906655764,-500.0,0.00031506,2]
[311105681,1704906655773,-750.47,0.00031506,2]
[311105682,1704906655782,-927.26,0.00031506,2]
[311105683,1704906655791,-500.0,0.00031506,2]
[311105684,1704906655800,-1601.93,0.00031506,2]
[311105685,1704906655809,-500.0,0.00031506,2]
[311105686,1704906655818,-500.0,0.00031506,2]
[311105687,1704906655827,-648.47,0.00031506,2]
[311105688,1704906655836,-500.0,0.00031506,2]
[311105689,1704906655845,-705.37,0.00031506,2]
[311105690,1704906655854,-421.14717787,0.00031506,2]
[311105691,1704906655863,-4152.8,0.00031506,2]
[311105692,1704906655872,-9667.13,0.00031506,2]
[311105693,1704906655881,-600.74,0.00031506,2]
[311105694,1704906655890,-1219.97,0.00031506,2]
[311105695,1704906655899,-1138.5,0.00031506,2]
[311105696,1704906655909,-1430.3,0.00031506,2]
[311105697,1704906655918,-638.09,0.00031506,2]
[311105698,1704906655927,-390.44912,0.00031506,2]
[311105699,1704906655936,-390.44912,0.00031506,2]
[311105700,1704906655945,-508.852716,0.00031506,2]
[311105701,1704906655954,-508.852716,0.00031506,2]
[311105702,1704906655963,-254.00672133,0.00031507,2]
[311105703,1704906655972,-5000.0,0.00031642,7]
[311105704,1704906655981,-5000.0,0.0003167,7]
[311105705,1704906655991,-153.0,0.00031681,2]
[311105706,1704906656000,-153.0,0.00031681,2]
[311105707,1704906656009,-153.0,0.00031681,2]
[311105708,1704906656019,-153.0,0.00031681,2]
[311105709,1704906656030,-153.0,0.00031681,2]
[311105710,1704906656040,-153.0,0.00031681,2]
[311105711,1704906656049,-153.0,0.00031681,2]
[311105712,1704906656058,-153.0,0.00031681,2]
[311105713,1704906656067,-153.0,0.00031681,2]
[311105714,1704906656076,-533.41,0.0003178,2]
[311105715,1704906656085,-500.0,0.0003178,2]
[311105716,1704906656094,-750.47,0.0003178,2]
[311105717,1704906656104,-927.26,0.0003178,2]
[311105718,1704906656114,-355.05174422,0.0003178,2]
[311105719,1704906656123,-1601.93,0.0003178,2]
[311105720,1704906656132,-500.0,0.0003178,2]
[311105721,1704906656141,-500.0,0.0003178,2]
[311105722,1704906656150,-648.47,0.0003178,2]
[311105723,1704906656160,-500.0,0.0003178,2]
[311105724,1704906656169,-705.37,0.0003178,2]
[311105725,1704906656178,-4152.8,0.0003178,2]
[311105726,1704906656187,-9667.13,0.0003178,2]
[311105727,1704906656196,-600.74,0.0003178,2]
[311105728,1704906656206,-1219.97,0.0003178,2]
[311105729,1704906656215,-1138.5,0.0003178,2]
[311105730,1704906656224,-1430.3,0.0003178,2]
[311105731,1704906656233,-638.09,0.0003178,2]
[311105732,1704906656243,-151.0,0.00031936,2]
[311105733,1704906656252,-6624.59015904,0.0003194,2]
[311105734,1704906656262,-480.93,0.00031972,2]
[311105735,1704906656271,-151.0,0.00031985,2]
[311105736,1704906656280,-151.0,0.00031985,2]
[311105737,1704906656290,-708.69,0.00031999,2]
[311105738,1704906656300,-708.69,0.00031999,2]
[311105739,1704906656310,-30085.53212549,0.00032,7]
[311105740,1704906656319,-3342.64274471,0.00032,10]
[311105741,1704906656329,-42685.66311964,0.00032,15]
[311105742,1704906656338,-2134.03260025,0.00032,4]
[311105743,1704906656348,-13838.0,0.00032,2]
[311105744,1704906656357,-150.0,0.00032,2]
[311105745,1704906656366,-154.87609912,0.00032053,2]
[311105746,1704906656375,-533.41,0.00032054,2]
[311105747,1704906656384,-500.0,0.00032054,2]
[311105748,1704906656393,-750.47,0.00032054,2]
[311105749,1704906656404,-927.26,0.00032054,2]
[311105750,1704906656413,-1601.93,0.00032054,2]
[311105751,1704906656422,-500.0,0.00032054,2]
[311105752,1704906656431,-500.0,0.00032054,2]
[311105753,1704906656440,-648.47,0.00032054,2]
[311105754,1704906656449,-192.94317733,0.00032054,2]
[311105755,1704906656458,-705.37,0.00032054,2]
[311105756,1704906656467,-4152.8,0.00032054,2]
[311105757,1704906656476,-9667.13,0.00032054,2]
[311105758,1704906656489,-600.74,0.00032054,2]
[311105759,1704906656499,-1219.97,0.00032054,2]
[311105760,1704906656508,-1138.5,0.00032054,2]
[311105761,1704906656517,-1430.3,0.00032054,2]
[311105762,1704906656526,-638.09,0.00032054,2]
[311105763,1704906656536,-1000.0,0.00032067,2]
[311105764,1704906656545,-1000.0,0.0003207,2]
[311105765,1704906656555,-1000.0,0.00032073,2]
[311105766,1704906656564,-620.0000022,0.00032089,2]
[311105767,1704906656573,-1000.0,0.00032108,2]
[311105768,1704906656581,-1000.0,0.00032113,2]
[311105769,1704906656590,-1000.0,0.0003213,2]
[311105770,1704906656599,-1000.0,0.00032143,2]
[311105771,1704906656608,-150.8642222,0.00032146,2]
[311105772,1704906656617,-250.26564092,0.00032146,2]
[311105773,1704906656626,-1000.0,0.00032155,2]
[311105774,1704906656635,-1000.0,0.00032172,2]
[311105775,1704906656645,-1000.0,0.00032181,2]
[311105776,1704906656654,-1000.0,0.00032182,2]
[311105777,1704906656662,-1000.0,0.00032191,2]
[311105778,1704906656671,-1000.0,0.00032199,2]
[311105779,1704906656682,-1000.0,0.0003221,2]
[311105780,1704906656691,-1000.0,0.00032216,2]
[311105781,1704906656699,-1000.0,0.00032216,2]
[311105782,1704906656708,-1000.0,0.00032225,2]
[311105783,1704906656717,-1000.0,0.00032244,2]
[311105784,1704906656726,-1000.0,0.00032245,2]
[311105785,1704906656735,-1000.0,0.00032246,2]
[311105786,1704906656744,-2000.0,0.0003225,2]
[311105787,1704906656753,-1000.0,0.00032253,2]
[311105788,1704906656788,-1000.0,0.00032257,2]
[311105789,1704906656797,-898.30296907,0.00032259,2]
[311105790,1704906656806,-1000.0,0.00032274,2]
[311105791,1704906656816,-1000.0,0.00032292,2]
[311105792,1704906656826,-18744.1000345,0.000323,2]
[311105793,1704906656836,-1000.0,0.00032306,2]
[311105794,1704906656847,-1000.0,0.00032307,2]
[311105795,1704906656857,-1000.0,0.00032324,2]
[311105796,1704906656867,-533.41,0.00032328,2]
[311105797,1704906656877,-500.0,0.00032328,2]
[311105798,1704906656886,-750.47,0.00032328,2]
[311105799,1704906656897,-927.26,0.00032328,2]
[311105800,1704906656908,-1601.93,0.00032328,2]
[311105801,1704906656917,-500.0,0.00032328,2]
[311105802,1704906656926,-500.0,0.00032328,2]
[311105803,1704906656935,-648.47,0.00032328,2]
[311105804,1704906656944,-705.37,0.00032328,2]
[311105805,1704906656953,-4152.8,0.00032328,2]
[311105806,1704906656963,-9667.13,0.00032328,2]
[311105807,1704906656974,-600.74,0.00032328,2]
[311105808,1704906656983,-1219.97,0.00032328,2]
[311105809,1704906656993,-1138.5,0.00032328,2]
[311105810,1704906657004,-1430.3,0.00032328,2]
[311105811,1704906657014,-638.09,0.00032328,2]
[311105812,1704906657024,-1000.0,0.0003233,2]
[311105813,1704906657034,-11911.29234634,0.0003234,4]
[311105814,1704906657045,-4168.01043791,0.0003234,3]
[311105815,1704906657055,-1000.0,0.0003234,4]
[311105816,1704906657064,-390.44912,0.0003234,2]
[311105817,1704906657074,-390.44912,0.0003234,2]
[311105818,1704906657083,-508.852716,0.0003234,2]
[311105819,1704906657093,-508.852716,0.0003234,2]
[311105820,1704906657103,-309.79865023,0.00032367,4]
[311105821,1704906657112,-155.2553482,0.00032389,2]
[311105822,1704906657123,-1636.77751179,0.00032406,2]
[311105823,1704906657134,-3272.68724508,0.0003249,2]
[311105824,1704906657144,-787.43,0.00032499,2]
[311105825,1704906657154,-223.15034432,0.000325,4]
[311105826,1704906657164,-156.00930331,0.000325,4]
[311105827,1704906657174,-1200.0,0.000325,4]
[311105828,1704906657184,-7286.8212657,0.000325,5]
[311105829,1704906657265,-91659.93999967,0.000325,20]
[311105830,1704906657388,-10202.84952288,0.000325,20]
[311105831,1704906657401,-698000.0,0.000325,20]
[311105832,1704906657600,-230.48582873,0.00013683,2]
[311105833,1704906657609,-162.75529733,0.00013683,2]
[311105834,1704906657620,-466.69842907,0.00013684,2]
[311105835,1704906657630,-154.87609912,0.00013684,2]
[311105836,1704906657640,-255.88692025,0.00013684,2]
[311105837,1704906657713,-34.45022798,0.00013684,2]
[311105838,1704906657723,-521.96872985,0.0003041,2]
[311105839,1704906657735,-793.70127015,0.0003041,2]
[311105840,1704906657746,-353.81482989,0.00030684,2]
[311105841,1704906658116,-309.70577409,0.00027396,2]
[311105842,1704906658126,-212.94703521,0.00027396,2]
[311105843,1704906658135,-521.10576847,0.00027396,2]
[311105844,1704906658145,-2029.97306616,0.00027396,2]
[311105845,1704906658154,-151.0,0.00028998,2]
[311105846,1704906658164,-961.85517011,0.00030684,2]
[311105847,1704906658173,-1315.67,0.00030958,2]
[311105848,1704906658183,-1315.67,0.00031232,2]
[311105849,1704906658193,-1315.67,0.00031506,2]
[311105850,1704906658202,-1315.67,0.0003178,2]
[311105851,1704906658211,-1315.67,0.00032054,2]
[311105852,1704906658221,-1315.67,0.00032328,2]
[311105853,1704906658230,-194556.55357708,0.000325,20]